bitfinex-derivatives/quotes_BNBF0:USTF0_20241225
["timestamp","ask_amount","ask_price","bid_price","bid_amount"]
[1735088948187,0.87821621,700.77,699.09,0.28608619]
[1735088948380,0.28522126,701.21,699.09,0.28608619]
[1735088948585,1.13958076,701.2,699.09,0.28608619]
[1735088948783,0.8771478,701.19,699.09,0.28608619]
[1735088948987,0.8771478,701.18,699.09,0.28608619]
[1735088949183,0.8771478,701.17,699.09,0.28608619]
[1735088949381,0.8771478,701.16,699.09,0.28608619]
[1735088949584,0.8771478,701.15,699.09,0.28608619]
[1735088949787,0.8771478,701.14,699.09,0.28608619]
[1735088949988,0.8771478,701.13,699.09,0.28608619]
[1735088950188,0.8771478,701.12,699.09,0.28608619]
[1735088950388,0.8771478,701.11,699.09,0.28608619]
[1735088950588,0.8771478,701.1,699.09,0.28608619]
[1735088950781,0.8771478,701.09,699.09,0.28608619]
[1735088950983,0.8771478,701.08,699.09,0.28608619]
[1735088951187,0.8771478,701.07,699.09,0.28608619]
[1735088951486,0.87641371,701.06,699.09,0.28608619]
[1735088951684,0.87641371,701.05,699.09,0.28608619]
[1735088951989,0.87641371,701.04,699.09,0.28608619]
[1735088952185,0.87641371,701.03,699.09,0.28608619]
[1735088952385,0.87641371,701.02,699.09,0.28608619]
[1735088952585,0.87641371,701.01,699.09,0.28608619]
[1735088952890,0.87641371,701.0,699.09,0.28608619]
[1735088953091,0.87641371,700.99,699.09,0.28608619]
[1735088953292,0.87641371,700.98,699.09,0.28608619]
[1735088953487,0.87641371,700.97,699.09,0.28608619]
[1735088953683,0.87641371,700.96,699.09,0.28608619]
[1735088953886,0.87641371,700.95,699.09,0.28608619]
[1735088954082,0.87641371,700.94,699.09,0.28608619]
[1735088954286,0.87641371,700.93,699.09,0.28608619]
[1735088954487,0.87579651,700.92,699.09,0.28608619]
[1735088954790,0.87579651,700.91,699.09,0.28608619]
[1735088955085,0.87579651,700.9,699.09,0.28608619]
[1735088955289,0.87579651,700.89,699.09,0.28608619]
[1735088955590,0.87579651,700.88,699.09,0.28608619]
[1735088955790,0.87579651,700.87,699.09,0.28608619]
[1735088955991,0.87579651,700.86,699.09,0.28608619]
[1735088956190,0.87579651,700.85,699.09,0.28608619]
[1735088956387,0.87579651,700.84,699.09,0.28608619]
[1735088956585,0.87579651,700.83,699.09,0.28608619]
[1735088956790,0.87579651,700.82,699.09,0.28608619]
[1735088957091,0.87579651,700.81,699.09,0.28608619]
[1735088957292,0.87579651,700.8,699.09,0.28608619]
[1735088957492,0.87536364,700.79,699.09,0.28608619]
[1735088957691,0.87536364,700.78,699.09,0.28608619]
[1735088957891,0.87536364,700.77,699.09,0.28608619]
[1735088958194,0.87536364,700.76,699.09,0.28608619]
[1735088958390,0.87536364,700.75,699.09,0.28608619]
[1735088958591,0.87536364,700.74,699.09,0.28608619]
[1735088958892,0.87536364,700.73,699.09,0.28608619]
[1735088959092,0.87536364,700.72,699.09,0.28608619]
[1735088959289,0.87536364,700.71,699.09,0.28608619]
[1735088959596,0.87536364,700.7,699.09,0.28608619]
[1735088959893,0.87509737,700.69,699.09,0.28608619]
[1735088960093,0.87509737,700.68,699.09,0.28608619]
[1735088960294,0.28522126,701.21,699.09,0.28608619]
[1735088960589,1.13736536,701.2,699.09,0.28608619]
[1735088960892,1.13736536,701.19,699.09,0.28608619]
[1735088961088,0.28522126,701.21,699.09,0.28608619]
[1735088961089,1.13738975,701.18,699.09,0.28608619]
[1735088961294,1.13738975,701.17,699.09,0.28608619]
[1735088961492,0.28522126,701.21,699.09,0.28608619]
[1735088961493,1.13738975,701.16,699.09,0.28608619]
[1735088961694,1.13738975,701.15,699.09,0.28608619]
[1735088961997,1.13738975,701.14,699.09,0.28608619]
[1735088962296,1.13738975,701.13,699.09,0.28608619]
[1735088962494,1.13738975,701.12,699.09,0.28608619]
[1735088962690,1.13738975,701.11,699.09,0.28608619]
[1735088962894,0.87495509,701.1,699.09,0.28608619]
[1735088963091,0.87495509,701.09,699.09,0.28608619]
[1735088963292,0.28522126,701.21,699.09,0.28608619]
[1735088963293,0.87495509,701.08,699.09,0.28608619]
[1735088963491,0.87495509,701.07,699.09,0.28608619]
[1735088963690,0.87495509,701.06,699.09,0.28608619]
[1735088963892,0.87495509,701.05,699.09,0.28608619]
[1735088964094,0.87495509,701.04,699.09,0.28608619]
[1735088964288,0.87495509,701.03,699.09,0.28608619]
[1735088964493,0.87495509,701.02,699.09,0.28608619]
[1735088964694,0.87495509,701.01,699.09,0.28608619]
[1735088964892,0.87495509,701.0,699.09,0.28608619]
[1735088965092,0.28522126,701.21,699.09,0.28608619]
[1735088965093,0.87495509,700.99,699.09,0.28608619]
[1735088965295,0.87495509,700.98,699.09,0.28608619]
[1735088965494,0.87495509,700.97,699.09,0.28608619]
[1735088965694,0.87495509,700.96,699.09,0.28608619]
[1735088965893,0.28522126,701.21,699.13,1.06947192]
[1735088965894,0.87495509,700.95,699.13,1.06947192]
[1735088966093,0.87495509,700.94,699.23,0.28602891]
[1735088966395,0.87495509,700.93,699.23,0.28602891]
[1735088966588,0.87449919,700.92,699.23,0.28602891]
[1735088966793,0.87449919,700.91,699.23,0.28602891]
[1735088966998,0.87449919,700.9,699.23,0.28602891]
[1735088967190,0.87449919,700.89,699.23,0.28602891]
[1735088967395,0.87449919,700.88,699.23,0.28602891]
[1735088967697,0.28522126,701.21,699.23,0.28602891]
[1735088967698,0.87449919,700.87,699.23,0.28602891]
[1735088967895,0.87449919,700.86,699.23,0.28602891]
[1735088968091,0.87449919,700.85,699.23,0.28602891]
[1735088968396,0.87449919,700.84,699.23,0.28602891]
[1735088968597,0.28522126,701.21,699.23,0.28602891]
[1735088968598,0.87449919,700.83,699.23,0.28602891]
[1735088968799,0.87449919,700.82,699.23,0.28602891]
[1735088969096,0.87449919,700.81,699.23,0.28602891]
[1735088969297,0.87449919,700.8,699.23,0.28602891]
[1735088969497,0.28522126,701.21,699.23,0.28602891]
[1735088969498,0.28522126,701.21,699.29,1.06947192]
[1735088969699,1.13682039,701.2,699.29,1.06947192]
[1735088969895,1.13682039,701.19,699.29,1.06947192]
[1735088970197,1.13682039,701.18,699.29,1.06947192]
[1735088970397,1.13682039,701.17,699.23,0.28602891]
[1735088970596,1.13682039,701.16,699.23,0.28602891]
[1735088970795,1.13682039,701.15,699.23,0.28602891]
[1735088970994,1.13682039,701.14,699.23,0.28602891]
[1735088971194,1.13682039,701.13,699.23,0.28602891]
[1735088971394,0.87439564,701.12,699.23,0.28602891]
[1735088971595,1.13683084,701.11,699.23,0.28602891]
[1735088971797,1.13683084,701.1,699.23,0.28602891]
[1735088971990,0.2624352,701.09,699.23,0.28602891]
[1735088972191,1.13695517,701.08,699.23,0.28602891]
[1735088972494,1.13695517,701.07,699.24,1.06947192]
[1735088972694,1.13701199,701.06,699.24,1.06947192]
[1735088972894,1.13701653,701.05,699.24,1.06947192]
[1735088973097,0.87457679,701.04,699.26,0.28601664]
[1735088973292,0.87457679,701.03,699.26,0.28601664]
[1735088973491,0.28522126,701.21,699.26,0.28601664]
[1735088973492,0.87457679,701.02,699.26,0.28601664]
[1735088973695,0.87457679,701.01,699.27,1.06947192]
[1735088973895,0.87457679,701.0,699.27,1.06947192]
[1735088974095,0.87457679,700.99,699.27,1.06947192]
[1735088974300,1.13701937,700.98,699.27,1.06947192]
[1735088974497,1.13701937,700.98,699.26,0.28601664]
[1735088974498,0.87457679,700.97,699.29,1.06947192]
[1735088974692,0.87457679,700.96,699.29,1.06947192]
[1735088974891,0.87457679,700.95,699.29,1.06947192]
[1735088975094,0.87457679,700.94,699.31,0.28599619]
[1735088975292,0.87457679,700.93,699.31,0.28599619]
[1735088975491,0.87457679,700.92,699.31,0.28599619]
[1735088975694,0.28522126,701.21,699.31,0.28599619]
[1735088975695,0.8750138,700.91,699.37,1.06947192]
[1735088975893,0.8750138,700.9,699.39,0.28596348]
[1735088976096,0.8750138,700.89,699.39,0.28596348]
[1735088976297,0.8750138,700.88,699.39,0.28596348]
[1735088976497,0.8750138,700.87,699.39,0.28596348]
[1735088976698,0.8750138,700.86,699.39,0.28596348]
[1735088976898,0.8750138,700.85,699.39,0.28596348]
[1735088977198,0.8750138,700.84,699.39,0.28596348]
[1735088977397,0.8750138,700.83,699.39,0.28596348]
[1735088977597,0.8750138,700.82,699.39,0.28596348]
[1735088977792,0.8750138,700.81,699.39,0.28596348]
[1735088977996,0.8750138,700.8,699.39,0.28596348]
[1735088978297,0.8750138,700.79,699.39,0.28596348]
[1735088978496,0.8750138,700.78,699.39,0.28596348]
[1735088978693,0.8750138,700.77,699.39,0.28596348]
[1735088978894,0.8750138,700.76,699.39,0.28596348]
[1735088979097,0.8756894,700.75,699.39,0.28596348]
[1735088979298,0.8756894,700.74,699.39,0.28596348]
[1735088979597,0.8756894,700.73,699.39,0.28596348]
[1735088979899,0.8756894,700.72,699.39,0.28596348]
[1735088980095,0.8756894,700.71,699.39,0.28596348]
[1735088980293,0.8756894,700.7,699.39,0.28596348]
[1735088980499,0.8756894,700.69,699.39,0.28596348]
[1735088980698,0.87647175,700.68,699.39,0.28596348]
[1735088980898,0.28522126,701.21,699.39,0.28596348]
[1735088981100,0.87647542,701.2,699.39,0.28596348]
[1735088981301,0.28522126,701.21,699.39,0.28596348]
[1735088981302,0.87647542,701.19,699.39,0.28596348]
[1735088981501,0.87647542,701.18,699.39,0.28596348]
[1735088981801,0.87687463,701.17,699.39,0.28596348]
[1735088982001,0.87687463,701.16,699.39,0.28596348]
[1735088982202,0.87687463,701.15,699.39,0.28596348]
[1735088982397,0.87687463,701.14,699.39,0.28596348]
[1735088982600,0.87687463,701.13,699.39,0.28596348]
[1735088982800,0.87687463,701.12,699.39,0.28596348]
[1735088983001,0.87687463,701.11,699.39,0.28596348]
[1735088983199,0.87687463,701.1,699.39,0.28596348]
[1735088983403,0.87687463,701.09,699.39,0.28596348]
[1735088983599,0.87687463,701.08,699.39,0.28596348]
[1735088983798,0.87687463,701.07,699.39,0.28596348]
[1735088984003,0.87687463,701.06,699.39,0.28596348]
[1735088984204,0.87687463,701.05,699.39,0.28596348]
[1735088984404,0.87687463,701.04,699.39,0.28596348]
[1735088984603,0.28522126,701.21,699.39,0.28596348]
[1735088984604,0.87687463,701.03,699.39,0.28596348]
[1735088984902,0.28522126,701.21,699.39,0.28596348]
[1735088984903,0.8778198,701.02,699.43,1.06947192]
[1735088985105,0.8778198,701.01,699.43,1.06947192]
[1735088985305,0.8778198,701.0,699.43,1.06947192]
[1735088985505,0.8778198,700.99,699.45,0.28593895]
[1735088985708,0.8778198,700.98,699.45,0.28593895]
[1735088985908,0.8778198,700.97,699.45,0.28593895]
[1735088986107,0.8778198,700.96,699.45,0.28593895]
[1735088986303,0.8778198,700.95,699.45,0.28593895]
[1735088986503,0.8778198,700.94,699.45,0.28593895]
[1735088986704,0.8778198,700.93,699.51,1.06947192]
[1735088986905,0.8778198,700.92,699.51,1.06947192]
[1735088987105,0.8778198,700.91,699.51,1.06947192]
[1735088987305,0.8778198,700.9,699.51,1.06947192]
[1735088987503,0.8778198,700.89,699.51,1.06947192]
[1735088987707,0.8778198,700.88,699.58,1.06947192]
[1735088988006,0.8778198,700.87,699.58,1.06947192]
[1735088988207,0.8778198,700.86,699.58,1.06947192]
[1735088988407,0.28522126,701.21,699.58,1.06947192]
[1735088988408,0.87898986,700.85,699.58,1.06947192]
[1735088988704,0.87898986,700.84,699.58,1.06947192]
[1735088988902,0.87898986,700.83,699.58,1.06947192]
[1735088989108,0.87898986,700.82,699.58,1.06947192]
[1735088989309,0.87898986,700.81,699.75,1.06947192]
[1735088989606,0.87898986,700.8,699.75,1.06947192]
[1735088989810,0.87898986,700.79,699.75,1.06947192]
[1735088990111,0.28522126,701.21,699.75,1.06947192]
[1735088990410,0.87952056,701.2,699.7,1.06947192]
[1735088990611,0.87952056,701.19,699.7,1.06947192]
[1735088990811,0.87952056,701.18,699.7,1.06947192]
[1735088991009,0.87952056,701.17,699.7,1.06947192]
[1735088991212,0.87952056,701.16,699.7,1.06947192]
[1735088991405,0.87952056,701.15,699.7,1.06947192]
[1735088991614,0.87952056,701.14,699.71,1.06947192]
[1735088991804,0.87952056,701.13,699.71,1.06947192]
[1735088992010,0.87952056,701.12,699.71,1.06947192]
[1735088992313,0.87952056,701.11,699.66,1.06947192]
[1735088992509,0.87952056,701.1,699.66,1.06947192]
[1735088992708,0.87952056,701.09,699.66,1.06947192]
[1735088992908,0.87952056,701.08,699.68,0.28584495]
[1735088993107,0.87952056,701.07,699.68,0.28584495]
[1735088993307,0.87952056,701.06,699.68,0.28584495]
[1735088993509,0.87952056,701.05,699.68,0.28584495]
[1735088993706,1.07182841,701.52,699.68,0.28584495]
[1735088993914,1.14231204,701.51,699.68,0.28584495]
[1735088994115,1.14231204,701.5,699.68,0.28584495]
[1735088994414,1.14231741,701.49,699.68,0.28584495]
[1735088994614,1.14231741,701.48,699.68,0.28584495]
[1735088994914,1.14231741,701.47,699.68,0.28584495]
[1735088995113,1.14231741,701.46,699.68,0.28584495]
[1735088995313,1.14231741,701.45,699.68,0.28584495]
[1735088995513,1.14231741,701.44,699.68,0.28584495]
[1735088995716,1.14231741,701.43,699.68,0.28584495]
[1735088995908,1.14231741,701.42,699.68,0.28584495]
[1735088996114,1.14231741,701.41,699.68,0.28584495]
[1735088996312,1.07182841,701.7,699.68,0.28584495]
[1735088996313,1.14231741,701.4,699.68,0.28584495]
[1735088996614,1.14230815,701.39,699.68,0.28584495]
[1735088996810,1.14266988,701.38,699.68,0.28584495]
[1735088997007,1.14266988,701.37,699.68,0.28584495]
[1735088997210,0.88031872,701.36,699.68,0.28584495]
[1735088997413,0.88033889,701.35,699.68,0.28584495]
[1735088997612,0.88033889,701.34,699.68,0.28584495]
[1735088997813,0.88033889,701.33,699.68,0.28584495]
[1735088998113,0.64774353,701.89,699.68,0.28584495]
[1735088998114,0.88033889,701.32,699.68,0.28584495]
[1735088998314,0.88033889,701.31,699.68,0.28584495]
[1735088998511,0.88033889,701.3,699.68,0.28584495]
[1735088998713,0.88033889,701.29,699.68,0.28584495]
[1735088998914,0.88033889,701.28,699.68,0.28584495]
[1735088999114,1.07182841,701.89,699.68,0.28584495]
[1735088999115,0.88033889,701.27,699.68,0.28584495]
[1735088999414,0.88033889,701.26,699.68,0.28584495]
[1735088999609,0.88033889,701.25,699.68,0.28584495]
[1735088999812,1.07182841,701.89,699.68,0.28584495]
[1735088999813,0.88033889,701.24,699.68,0.28584495]
[1735089000014,0.88033889,701.23,699.68,0.28584495]
[1735089000214,0.88033889,701.22,699.68,0.28584495]
[1735089000415,0.88033889,701.21,699.68,0.28584495]
[1735089000716,0.88033889,701.2,699.68,0.28584495]
[1735089000916,0.88033889,701.19,699.68,0.28584495]
[1735089001111,0.88033889,701.18,699.68,0.28584495]
[1735089001314,0.88033889,701.17,699.68,0.28584495]
[1735089001615,1.07182841,701.84,699.68,0.28584495]
[1735089001616,0.88033889,701.16,699.68,0.28584495]
[1735089001815,1.07182841,701.84,699.68,0.28584495]
[1735089002024,1.07182841,701.73,699.68,0.28584495]
[1735089002316,0.28501802,701.71,699.68,0.28584495]
[1735089002517,1.1428566,701.7,699.68,0.28584495]
[1735089002717,0.28503021,701.68,699.68,0.28584495]
[1735089002916,1.1428566,701.67,699.68,0.28584495]
[1735089003116,1.1428566,701.66,699.68,0.28584495]
[1735089003419,1.1428566,701.65,699.68,0.28584495]
[1735089003716,1.07182841,701.6,699.68,0.28584495]
[1735089003916,0.28507084,701.58,699.68,0.28584495]
[1735089004118,1.1428566,701.57,699.68,0.28584495]
[1735089004317,1.1428566,701.56,699.68,0.28584495]
[1735089004514,1.1428566,701.55,699.68,0.28584495]
[1735089004712,0.28509115,701.53,699.68,0.28584495]
[1735089004914,1.14334127,701.52,699.68,0.28584495]
[1735089005117,1.14334127,701.51,699.68,0.28584495]
[1735089005312,0.28509115,701.53,699.68,0.28584495]
[1735089005313,0.26238146,701.5,699.68,0.28584495]
[1735089005517,0.28511147,701.48,699.68,0.28584495]
[1735089005719,1.14338911,701.47,699.68,0.28584495]
[1735089006021,0.28512367,701.45,699.68,0.28584495]
[1735089006219,1.14338911,701.44,699.68,0.28584495]
[1735089006417,1.14338911,701.43,699.68,0.28584495]
[1735089006618,1.14338911,701.42,699.68,0.28584495]
[1735089006818,1.14338911,701.41,699.68,0.28584495]
[1735089007020,1.14338911,701.4,699.68,0.28584495]
[1735089007222,1.42853717,701.39,699.68,0.28584495]
[1735089007421,1.42854123,701.38,699.68,0.28584495]
[1735089007615,1.14338911,701.37,699.68,0.28584495]
[1735089007821,0.28515212,701.38,699.68,0.28584495]
[1735089007822,1.14338911,701.36,699.68,0.28584495]
[1735089008123,1.42860315,701.35,699.68,0.28584495]
[1735089008317,1.42860722,701.34,699.68,0.28584495]
[1735089008521,1.42861128,701.33,699.68,0.28584495]
[1735089008721,1.42861535,701.32,699.68,0.28584495]
[1735089008918,1.42861942,701.31,699.68,0.28584495]
[1735089009120,1.42862348,701.3,699.68,0.28584495]
[1735089009323,1.16624609,701.29,699.68,0.28584495]
[1735089009517,1.42867594,701.28,699.68,0.28584495]
[1735089009718,1.42868,701.27,699.68,0.28584495]
[1735089009918,1.14348315,701.26,699.68,0.28584495]
[1735089010122,1.14348315,701.25,699.68,0.28584495]
[1735089010322,1.14348855,701.24,699.68,0.28584495]
[1735089010523,1.14348855,701.23,699.68,0.28584495]
[1735089010717,1.14348855,701.22,699.68,0.28584495]
[1735089010922,1.14348855,701.21,699.68,0.28584495]
[1735089011220,0.88105737,701.2,699.68,0.28584495]
[1735089011426,0.88105737,701.19,699.68,0.28584495]
[1735089011622,0.88105737,701.18,699.68,0.28584495]
[1735089011826,0.88105737,701.17,699.68,0.28584495]
[1735089012126,0.88105737,701.16,699.68,0.28584495]
[1735089012326,0.88105737,701.15,699.68,0.28584495]
[1735089012525,0.88105737,701.14,699.68,0.28584495]
[1735089012726,0.88105737,701.13,699.68,0.28584495]
[1735089012926,0.88105737,701.12,699.68,0.28584495]
[1735089013123,0.88105737,701.11,699.68,0.28584495]
[1735089013319,0.88105737,701.1,699.68,0.28584495]
[1735089013627,0.88105737,701.09,699.68,0.28584495]
[1735089013827,0.88105737,701.08,699.68,0.28584495]
[1735089014022,0.28519685,701.27,699.68,0.28584495]
[1735089014227,0.88104583,701.26,699.68,0.28584495]
[1735089014427,0.28519685,701.27,699.68,0.28584495]
[1735089014727,0.8810654,701.26,699.68,0.28584495]
[1735089014928,0.8810654,701.25,699.68,0.28584495]
[1735089015129,0.8810654,701.24,699.68,0.28584495]
[1735089015320,0.8810654,701.23,699.68,0.28584495]
[1735089015624,0.8810654,701.22,699.68,0.28584495]
[1735089015825,0.8810654,701.21,699.68,0.28584495]
[1735089016024,0.8810654,701.2,699.68,0.28584495]
[1735089016224,0.8810654,701.19,699.68,0.28584495]
[1735089016527,0.8810654,701.18,699.68,0.28584495]
[1735089016729,0.8810654,701.17,699.68,0.28584495]
[1735089016924,0.8810654,701.16,699.68,0.28584495]
[1735089017125,0.88104833,701.15,699.68,0.28584495]
[1735089017319,0.88104833,701.14,699.68,0.28584495]
[1735089017526,0.88104833,701.13,699.68,0.28584495]
[1735089017727,0.88104833,701.12,699.68,0.28584495]
[1735089017926,0.88104833,701.11,699.68,0.28584495]
[1735089018127,0.88104833,701.1,699.68,0.28584495]
[1735089018328,0.88104833,701.09,699.68,0.28584495]
[1735089018528,0.88104833,701.08,699.68,0.28584495]
[1735089018731,0.88104833,701.07,699.68,0.28584495]
[1735089018925,0.88104833,701.06,699.68,0.28584495]
[1735089019131,0.88104833,701.05,699.68,0.28584495]
[1735089019324,0.28519685,701.27,699.68,0.28584495]
[1735089019325,0.88104833,701.04,699.68,0.28584495]
[1735089019526,0.88104833,701.03,699.68,0.28584495]
[1735089019726,0.88104833,701.02,699.68,0.28584495]
[1735089019931,0.28519685,701.27,699.68,0.28584495]
[1735089020425,0.88112999,701.26,699.68,0.28584495]
[1735089020629,0.88112999,701.25,699.68,0.28584495]
[1735089020829,0.88112999,701.24,699.68,0.28584495]
[1735089021023,0.88112999,701.23,699.68,0.28584495]
[1735089021228,0.88112999,701.22,699.68,0.28584495]
[1735089021426,0.88112999,701.21,699.68,0.28584495]
[1735089021625,0.88112999,701.2,699.68,0.28584495]
[1735089021827,0.88112999,701.19,699.68,0.28584495]
[1735089022026,0.88112999,701.18,699.68,0.28584495]
[1735089022227,0.88112999,701.17,699.68,0.28584495]
[1735089022428,0.88112999,701.16,699.68,0.28584495]
[1735089022626,0.88112999,701.15,699.68,0.28584495]
[1735089022824,0.28519685,701.27,699.68,0.28584495]
[1735089022825,0.88112999,701.14,699.68,0.28584495]
[1735089023031,0.88112999,701.13,699.68,0.28584495]
[1735089023229,0.88112999,701.12,699.68,0.28584495]
[1735089023426,0.88112999,701.11,699.68,0.28584495]
[1735089023625,0.28519685,701.27,699.68,0.28584495]
[1735089023929,1.14370677,701.26,699.68,0.28584495]
[1735089024128,1.42891176,701.25,699.68,0.28584495]
[1735089024331,1.14370677,701.24,699.68,0.28584495]
[1735089024526,0.28520499,701.25,699.68,0.28584495]
[1735089024527,1.14370677,701.23,699.68,0.28584495]
[1735089024732,1.14370677,701.22,699.68,0.28584495]
[1735089024927,1.14370677,701.21,699.68,0.28584495]
[1735089025124,1.14370677,701.2,699.68,0.28584495]
[1735089025325,1.14370677,701.19,699.68,0.28584495]
[1735089025525,0.2624742,701.18,699.68,0.28584495]
[1735089025729,1.14363301,701.17,699.68,0.28584495]
[1735089025929,1.14363111,701.16,699.68,0.28584495]
[1735089026229,1.14363111,701.15,699.68,0.28584495]
[1735089026428,1.14363111,701.14,699.68,0.28584495]
[1735089026629,1.14363111,701.13,699.68,0.28584495]
[1735089026830,1.14363111,701.12,699.68,0.28584495]
[1735089027031,1.14363111,701.11,699.68,0.28584495]
[1735089027225,1.14363111,701.1,699.68,0.28584495]
[1735089027426,1.14363111,701.09,699.68,0.28584495]
[1735089027632,1.14363111,701.08,699.68,0.28584495]
[1735089027934,1.14363111,701.07,699.68,0.28584495]
[1735089028132,1.14363111,701.06,699.68,0.28584495]
[1735089028435,1.14363111,701.05,699.68,0.28584495]
[1735089028627,1.14362913,701.04,699.68,0.28584495]
[1735089028830,1.14362913,701.03,699.68,0.28584495]
[1735089029031,1.14363074,701.02,699.68,0.28584495]
[1735089029230,1.14363074,701.01,699.68,0.28584495]
[1735089029433,1.14363074,701.0,699.68,0.28584495]
[1735089029735,0.88115881,700.99,699.68,0.28584495]
[1735089029934,0.88115881,700.98,699.68,0.28584495]
[1735089030135,0.88115881,700.97,699.68,0.28584495]
[1735089030435,0.88115881,700.96,699.68,0.28584495]
[1735089030635,0.88115881,700.95,699.68,0.28584495]
[1735089030835,0.88115881,700.94,699.68,0.28584495]
[1735089031035,0.88115881,700.93,699.68,0.28584495]
[1735089031230,0.88115881,700.92,699.68,0.28584495]
[1735089031435,0.88115881,700.91,699.68,0.28584495]
[1735089031635,0.88115881,700.9,699.68,0.28584495]
[1735089031836,0.88115881,700.89,699.68,0.28584495]
[1735089032030,0.88115881,700.88,699.68,0.28584495]
[1735089032232,0.88115881,700.87,699.68,0.28584495]
[1735089032429,0.88115881,700.86,699.68,0.28584495]
[1735089032635,0.88115881,700.85,699.68,0.28584495]
[1735089032835,0.88115881,700.84,699.68,0.28584495]
[1735089033131,0.88115881,700.83,699.68,0.28584495]
[1735089033337,0.88115881,700.82,699.68,0.28584495]
[1735089033531,0.28520499,701.25,699.68,0.28584495]
[1735089033532,0.88115881,700.81,699.68,0.28584495]
[1735089033734,0.88115881,700.8,699.68,0.28584495]
[1735089033934,0.88115881,700.79,699.68,0.28584495]
[1735089034136,0.88115881,700.78,699.68,0.28584495]
[1735089034334,0.88115881,700.77,699.68,0.28584495]
[1735089034538,0.88115881,700.76,699.68,0.28584495]
[1735089034838,0.88115881,700.75,699.68,0.28584495]
[1735089035142,0.88115881,700.74,699.68,0.28584495]
[1735089035336,0.88115881,700.73,699.68,0.28584495]
[1735089035536,0.88115881,700.72,699.68,0.28584495]
[1735089035734,0.88115881,700.71,699.68,0.28584495]
[1735089035935,0.88115881,700.7,699.68,0.28584495]
[1735089036137,0.88115881,700.69,699.68,0.28584495]
[1735089036336,0.88115881,700.68,699.68,0.28584495]
[1735089036538,0.88115881,700.67,699.68,0.28584495]
[1735089036733,0.88115881,700.66,699.68,0.28584495]
[1735089036937,0.88115881,700.65,699.68,0.28584495]
[1735089037237,0.88115881,700.64,699.68,0.28584495]
[1735089037437,0.28520499,701.25,699.68,0.28584495]
[1735089037438,0.88115881,700.63,699.68,0.28584495]
[1735089037637,0.88115881,700.62,699.68,0.28584495]
[1735089037838,0.28520499,701.25,699.68,0.28584495]
[1735089037839,0.88115881,700.61,699.68,0.28584495]
[1735089038035,1.07182841,701.24,699.68,0.28584495]
[1735089038239,1.14315153,701.23,699.68,0.28584495]
[1735089038538,1.14315153,701.22,699.68,0.28584495]
[1735089038738,1.14315153,701.21,699.68,0.28584495]
[1735089038938,1.14315153,701.2,699.68,0.28584495]
[1735089039136,1.14315153,701.19,699.68,0.28584495]
[1735089039337,1.14315153,701.18,699.68,0.28584495]
[1735089039636,1.14315153,701.17,699.68,0.28584495]
[1735089039934,1.14315153,701.16,699.68,0.28584495]
[1735089040240,1.14315153,701.15,699.68,0.28584495]
[1735089040540,1.14315153,701.14,699.68,0.28584495]
[1735089040834,1.14315153,701.13,699.68,0.28584495]
[1735089041039,1.14315153,701.12,699.68,0.28584495]
[1735089041335,0.28520499,701.25,699.68,0.28584495]
[1735089041336,1.14315153,701.11,699.68,0.28584495]
[1735089041534,1.14315153,701.1,699.68,0.28584495]
[1735089041738,1.14315153,701.09,699.68,0.28584495]
[1735089041937,1.14315153,701.08,699.68,0.28584495]
[1735089042139,0.28520499,701.25,699.68,0.28584495]
[1735089042140,1.14315153,701.07,699.68,0.28584495]
[1735089042439,1.14317239,701.06,699.68,0.28584495]
[1735089042639,1.14317239,701.05,699.68,0.28584495]
[1735089042936,1.14317239,701.04,699.68,0.28584495]
[1735089043135,0.88070543,701.03,699.68,0.28584495]
[1735089043336,1.14317236,701.02,699.68,0.28584495]
[1735089043536,1.14317236,701.01,699.68,0.28584495]
[1735089043738,1.14317236,701.0,699.68,0.28584495]
[1735089043938,1.14317236,700.99,699.68,0.28584495]
[1735089044138,1.14317236,700.98,699.68,0.28584495]
[1735089044333,1.14317236,700.97,699.68,0.28584495]
[1735089044535,1.14317236,700.96,699.68,0.28584495]
[1735089044838,1.14317236,700.95,699.68,0.28584495]
[1735089045039,1.14317236,700.94,699.68,0.28584495]
[1735089045236,1.14317408,700.93,699.68,0.28584495]
[1735089045438,0.88070543,700.92,699.68,0.28584495]
[1735089045640,0.88070543,700.91,699.68,0.28584495]
[1735089045841,0.88070543,700.9,699.68,0.28584495]
[1735089046042,0.88070543,700.89,699.68,0.28584495]
[1735089046243,0.88070543,700.88,699.68,0.28584495]
[1735089046437,0.88070543,700.87,699.68,0.28584495]
[1735089046639,0.88070543,700.86,699.68,0.28584495]
[1735089046842,0.88070543,700.85,699.68,0.28584495]
[1735089047042,1.07182841,701.14,699.68,0.28584495]
[1735089047245,1.14293985,701.13,699.68,0.28584495]
[1735089047542,1.14293985,701.12,699.68,0.28584495]
[1735089047748,1.14293985,701.11,699.68,0.28584495]
[1735089047945,1.07182841,701.09,699.68,0.28584495]
[1735089048139,1.14295084,701.08,699.68,0.28584495]
[1735089048339,1.14295084,701.07,699.68,0.28584495]
[1735089048539,1.14295084,701.06,699.68,0.28584495]
[1735089048743,1.14295084,701.05,699.68,0.28584495]
[1735089048943,1.14295084,701.04,699.68,0.28584495]
[1735089049150,1.14295084,701.03,699.68,0.28584495]
[1735089049445,1.14295084,701.02,699.68,0.28584495]
[1735089049638,1.14295084,701.01,699.68,0.28584495]